bitfinex/quotes_BTCUSD_20230110
["timestamp","ask_amount","ask_price","bid_price","bid_amount"]
[1673313338026,0.5689939,17212.0,17211.0,0.71246724]
[1673313339325,0.5689939,17212.0,17211.0,1.29349024]
[1673313341641,0.5689939,17212.0,17211.0,0.63377886]
[1673313341920,1.47252854,17212.0,17211.0,0.05275586]
[1673313342164,1.29855005,17212.0,17211.0,0.05275586]
[1673313344761,1.12453341,17212.0,17211.0,0.05275586]
[1673313345016,1.12453341,17212.0,17211.0,0.63377886]
[1673313347380,1.12453341,17212.0,17211.0,1.21480186]
[1673313347641,1.12453341,17212.0,17211.0,0.63377886]
[1673313347903,1.12453341,17212.0,17211.0,0.58208958]
[1673313348687,1.12453341,17212.0,17211.0,0.6303335]
[1673313349759,0.30800242,17212.0,17211.0,1.2845284]
[1673313350014,0.134,17212.0,17211.0,0.7035054]
[1673313352105,0.134,17212.0,17211.0,1.6462634]
[1673313353677,0.134,17212.0,17211.0,1.8655514]
[1673313355192,0.134,17212.0,17211.0,2.2272864]
[1673313355444,0.134,17212.0,17211.0,2.8083094]
[1673313355952,0.134,17212.0,17211.0,2.9200094]
[1673313357990,0.134,17212.0,17211.0,3.2200094]
[1673313358252,0.134,17212.0,17211.0,2.9200094]
[1673313359266,0.134,17212.0,17211.0,3.2200094]
[1673313359520,0.134,17212.0,17211.0,3.60460602]
[1673313359808,0.13392931,17212.0,17211.0,3.71660602]
[1673313360044,0.13392931,17212.0,17211.0,3.3320094]
[1673313360295,0.13392931,17212.0,17211.0,3.3310094]
[1673313360562,1.52972587,17215.0,17211.0,3.3310094]
[1673313360819,0.011,17212.0,17211.0,3.39321641]
[1673313361083,0.011,17212.0,17211.0,4.1323094]
[1673313362117,1.10000019,17215.0,17211.0,4.1073094]
[1673313362384,0.011,17212.0,17211.0,4.39296505]
[1673313362561,0.011,17212.0,17211.0,4.3001094]
[1673313362847,0.011,17212.0,17211.0,4.6353094]
[1673313363118,1.10000019,17215.0,17211.0,4.6103094]
[1673313363384,1.11100019,17215.0,17214.0,0.3376]
[1673313363653,1.11100019,17215.0,17214.0,1.280257]
[1673313363654,1.10000019,17215.0,17214.0,1.280257]
[1673313363925,0.60903447,17216.0,17214.0,2.73712189]
[1673313363926,0.17400242,17216.0,17214.0,2.73712189]
[1673313364184,1.02201305,17217.0,17215.0,0.530535]
[1673313364439,0.77217939,17217.0,17216.0,0.530535]
[1673313364685,1.4800707,17217.0,17215.0,0.1688]
[1673313365012,0.85369611,17216.0,17215.0,0.749686]
[1673313365219,0.85369611,17216.0,17215.0,0.580886]
[1673313365482,1.11471152,17216.0,17213.0,0.580924]
[1673313365738,0.54469933,17215.0,17213.0,1.2242593]
[1673313366002,0.71847855,17215.0,17213.0,1.2242593]
[1673313366283,0.97949396,17215.0,17213.0,0.6433353]
[1673313366778,1.27949396,17215.0,17213.0,0.6433353]
[1673313367039,1.35049396,17215.0,17213.0,0.6463353]
[1673313367551,0.17377922,17214.0,17213.0,0.6463353]
[1673313368340,1.35049396,17215.0,17213.0,0.6463353]
[1673313368599,1.35049396,17215.0,17213.0,1.2242913]
[1673313368867,1.27949396,17215.0,17213.0,1.2242913]
[1673313369357,1.62751302,17215.0,17213.0,1.2242913]
[1673313369617,0.47377922,17214.0,17213.0,1.2272913]
[1673313370157,0.47377922,17214.0,17213.0,1.2222913]
[1673313371448,0.47377922,17214.0,17213.0,1.2192913]
[1673313371702,0.54477922,17214.0,17213.0,1.2222913]
[1673313373719,0.54477922,17214.0,17213.0,1.2649613]
[1673313374712,0.53477922,17214.0,17213.0,1.2222913]
[1673313375675,0.53477922,17214.0,17213.0,1.26496384]
[1673313376412,0.79579463,17214.0,17213.0,1.26496384]
[1673313378696,0.7937341,17214.0,17213.0,1.26496384]
[1673313379945,0.7937341,17214.0,17213.0,0.04567254]
[1673313380717,0.7937341,17214.0,17213.0,0.04557083]
[1673313381472,1.14175316,17214.0,17213.0,0.04557083]
[1673313381729,0.98003447,17214.0,17213.0,0.04557083]
[1673313384835,0.98003447,17214.0,17213.0,0.00289829]
[1673313385869,0.98003447,17214.0,17213.0,0.04228833]
[1673313386128,2.30188897,17214.0,17213.0,0.04228833]
[1673313386381,3.46373297,17214.0,17213.0,0.04228833]
[1673313386894,3.46373297,17214.0,17213.0,0.00289829]
[1673313387712,3.46391296,17214.0,17213.0,0.00289829]
[1673313387972,3.02867776,17214.0,17213.0,0.04557083]
[1673313388254,3.46391201,17214.0,17213.0,0.04557083]
[1673313388513,2.80143275,17214.0,17213.0,0.04557083]
[1673313388772,2.80143275,17214.0,17213.0,0.00289829]
[1673313389557,1.84173848,17214.0,17213.0,0.00289829]
[1673313389803,1.84173848,17214.0,17213.0,0.04557083]
[1673313390637,2.10290406,17214.0,17213.0,0.04557083]
[1673313390830,2.10290399,17214.0,17213.0,0.00289829]
[1673313391066,1.66766974,17214.0,17213.0,0.00289829]
[1673313391863,0.98033393,17214.0,17213.0,0.66434472]
[1673313392133,0.85444769,17214.0,17213.0,0.66434472]
[1673313392367,0.50627927,17214.0,17213.0,0.66434472]
[1673313392884,0.50627927,17214.0,17213.0,0.7040705]
[1673313394867,0.68033393,17214.0,17213.0,0.7040705]
[1673313395130,0.50628321,17214.0,17213.0,0.7040705]
[1673313395394,0.68033393,17214.0,17213.0,0.7040705]
[1673313395937,0.68033393,17214.0,17213.0,1.2850265]
[1673313396675,0.68033393,17214.0,17213.0,1.8659825]
[1673313398972,0.50628849,17214.0,17213.0,1.8659825]
[1673313399523,0.24512298,17214.0,17213.0,2.2277175]
[1673313400050,0.24512298,17214.0,17213.0,1.8659825]
[1673313400574,0.24512298,17214.0,17213.0,2.2277175]
[1673313402067,0.24512298,17214.0,17213.0,1.8659825]
[1673313403794,0.24512298,17214.0,17213.0,2.4469385]
[1673313404292,0.50628849,17214.0,17213.0,2.4469385]
[1673313404808,0.24512298,17214.0,17213.0,2.4469385]
[1673313405324,0.24512298,17214.0,17213.0,2.8086735]
[1673313406360,0.071,17214.0,17213.0,2.8086735]
[1673313406614,0.24512298,17214.0,17213.0,2.8086735]
[1673313406867,0.071,17214.0,17213.0,2.4469385]
[1673313407133,0.071,17214.0,17213.0,2.8086735]
[1673313407413,0.24512298,17214.0,17213.0,2.8086735]
[1673313407642,0.071,17214.0,17213.0,2.4469385]
[1673313407893,0.24512298,17214.0,17213.0,2.4469385]
[1673313408135,0.071,17214.0,17213.0,2.4469385]
[1673313408375,0.071,17214.0,17213.0,2.8086735]
[1673313410670,0.071,17214.0,17213.0,2.4469385]
[1673313410931,0.071,17214.0,17213.0,1.8659825]
[1673313412349,0.071,17214.0,17213.0,2.2277175]
[1673313412587,0.071,17214.0,17213.0,1.8659825]
[1673313412839,0.071,17214.0,17213.0,2.2277175]
[1673313413579,0.071,17214.0,17213.0,2.8086735]
[1673313417511,0.071,17214.0,17213.0,2.4469385]
[1673313417512,0.24512298,17214.0,17213.0,2.4469385]
[1673313418790,0.24512298,17214.0,17213.0,2.8086735]
[1673313419288,0.071,17214.0,17213.0,2.8086735]
[1673313420092,0.071,17214.0,17213.0,2.2277175]
[1673313420315,0.24512298,17214.0,17213.0,1.8659825]
[1673313422863,0.50628849,17214.0,17213.0,1.8659825]
[1673313423118,0.24512298,17214.0,17213.0,1.8659825]
[1673313423358,0.50628849,17214.0,17213.0,1.8659825]
[1673313426410,0.50608849,17214.0,17213.0,1.8659825]
[1673313427764,0.50608849,17214.0,17213.0,1.82625672]
[1673313428272,0.68013393,17214.0,17213.0,1.82625672]
[1673313428778,0.67993393,17214.0,17213.0,1.82625672]
[1673313429542,1.23636648,17214.0,17213.0,0.58385429]
[1673313429797,1.23636648,17214.0,17213.0,0.00289829]
[1673313430047,1.79697052,17214.0,17213.0,0.00289829]
[1673313430292,1.4488021,17214.0,17213.0,0.00289829]
[1673313431543,1.79715419,17214.0,17213.0,0.00289829]
[1673313431784,1.4488021,17214.0,17213.0,0.00289829]
[1673313432295,1.79711839,17214.0,17213.0,0.00289829]
[1673313438760,1.41475458,17214.0,17213.0,0.00289829]
[1673313439037,1.24068431,17214.0,17213.0,0.00289829]
[1673313439291,1.24068431,17214.0,17213.0,0.68083581]
[1673313439564,1.24068431,17214.0,17213.0,1.26179181]
[1673313441669,1.24068431,17214.0,17213.0,1.30031924]
[1673313442125,0.50586383,17214.0,17213.0,1.30031924]
[1673313442142,0.50586383,17214.0,17213.0,1.88127524]
[1673313444966,0.85418012,17214.0,17213.0,1.88127524]
[1673313445209,0.68008027,17214.0,17213.0,1.88127524]
[1673313445715,0.50586603,17214.0,17213.0,1.84274781]
[1673313446202,0.50586603,17214.0,17213.0,2.44274781]
[1673313446940,0.24470205,17214.0,17213.0,2.44274781]
[1673313447447,0.24470205,17214.0,17213.0,3.23795459]
[1673313447936,0.24470205,17214.0,17213.0,2.48448586]
[1673313448423,0.50586603,17214.0,17213.0,2.48448586]
[1673313450733,0.50586603,17214.0,17213.0,2.44274781]
[1673313451709,0.50586603,17214.0,17213.0,2.48127524]
[1673313451965,0.50586603,17214.0,17213.0,1.88127524]
[1673313452253,0.50586603,17214.0,17213.0,0.62227868]
[1673313452254,0.68008027,17214.0,17213.0,0.62227868]
[1673313452484,1.11531452,17214.0,17213.0,0.62227868]
[1673313452749,1.41531452,17214.0,17213.0,0.62227868]
[1673313453002,1.15415054,17214.0,17213.0,0.62227868]
[1673313454750,1.15415054,17214.0,17213.0,0.58375125]
[1673313455501,1.53662228,17214.0,17213.0,0.58375125]
[1673313455748,1.53662228,17214.0,17213.0,0.6254893]
[1673313456739,1.53662228,17214.0,17213.0,0.00279525]
[1673313457740,1.53662228,17214.0,17213.0,0.04132268]
[1673313458489,1.75496454,17214.0,17213.0,0.04132268]
[1673313458727,1.75496454,17214.0,17213.0,0.00279525]
[1673313459274,1.16830599,17214.0,17213.0,0.00279525]
[1673313459523,1.51667502,17214.0,17213.0,0.00279525]
[1673313459825,1.16830599,17214.0,17213.0,0.00279525]
[1673313462850,1.16830599,17214.0,17213.0,0.0445333]
[1673313463094,1.51670562,17214.0,17213.0,0.0445333]
[1673313464625,0.66029463,17214.0,17213.0,1.13873748]
[1673313464911,0.65029463,17214.0,17213.0,1.13873748]
[1673313465394,0.4760877,17214.0,17213.0,1.13873748]
[1673313466643,0.4760877,17214.0,17213.0,4.15022848]
[1673313466644,0.0406,17214.0,17213.0,4.15022848]
[1673313469376,0.0406,17214.0,17213.0,4.73118448]
[1673313470418,0.0406,17214.0,17213.0,5.03118448]
[1673313471439,0.0406,17214.0,17213.0,4.43118448]
[1673313478638,0.0406,17214.0,17213.0,4.73118448]
[1673313479405,0.0406,17214.0,17213.0,4.9045465]
[1673313479662,0.0406,17214.0,17213.0,4.73118448]
[1673313479972,0.0406,17214.0,17213.0,4.9045465]
[1673313480195,0.0406,17214.0,17213.0,4.73118448]
[1673313480956,0.0406,17214.0,17213.0,4.93118448]
[1673313481230,0.0406,17214.0,17213.0,5.1045465]
[1673313481493,0.0406,17214.0,17213.0,4.59129832]
[1673313481740,0.0406,17214.0,17213.0,7.15538665]
[1673313482006,0.0406,17214.0,17213.0,6.469532]
[1673313482237,0.0406,17214.0,17213.0,7.22589171]
[1673313482559,0.0406,17214.0,17213.0,7.05383416]
[1673313482755,0.79906231,17217.0,17213.0,7.05104279]
[1673313483043,0.79906231,17217.0,17216.0,0.1677]
[1673313483316,0.79906231,17217.0,17216.0,1.691145]
[1673313483567,0.1741927,17217.0,17216.0,1.32941]
[1673313484076,0.2311927,17217.0,17216.0,1.33641]
[1673313486478,0.2311927,17217.0,17216.0,1.16871]
[1673313490092,0.057,17217.0,17216.0,1.16871]
[1673313490878,0.2311927,17217.0,17216.0,1.21001757]
[1673313492416,0.057,17217.0,17216.0,1.21001757]
[1673313493480,0.057,17217.0,17216.0,1.20990813]
[1673313494247,0.057,17217.0,17216.0,1.79387531]
[1673313496095,0.057,17217.0,17216.0,2.37473031]
[1673313496360,0.05688127,17217.0,17216.0,2.37473031]
[1673313496609,0.05688127,17217.0,17216.0,2.73646531]
[1673313496878,0.05688127,17217.0,17216.0,2.37473031]
[1673313497686,0.05688127,17217.0,17216.0,3.41210903]
[1673313497941,0.05688127,17217.0,17216.0,3.93717881]
[1673313498225,0.05688127,17217.0,17216.0,3.99508584]
[1673313498482,0.0066712,17218.0,17216.0,4.16171091]
[1673313498743,0.0066712,17218.0,17217.0,3.77766343]
[1673313498990,0.0066712,17218.0,17217.0,5.52004051]
[1673313499265,0.00390187,17219.0,17218.0,0.3]
[1673313499577,0.00390187,17219.0,17218.0,3.038996]
[1673313500652,0.00390187,17219.0,17218.0,4.48129466]
[1673313500972,0.00390187,17219.0,17218.0,4.24361677]
[1673313501225,0.00900187,17219.0,17218.0,4.74324075]
[1673313501476,0.00900187,17219.0,17218.0,5.21099503]
[1673313501996,0.00070187,17219.0,17218.0,5.21099503]
[1673313502235,0.00671258,17220.0,17219.0,0.3]
[1673313502485,0.00671258,17220.0,17219.0,4.65913331]
[1673313503468,0.00671258,17220.0,17219.0,5.23988631]
[1673313503720,0.00621258,17220.0,17219.0,5.23988631]
[1673313504211,0.00921258,17220.0,17219.0,5.25988631]
[1673313504481,0.00921258,17220.0,17219.0,5.26001327]
[1673313504732,0.00921258,17220.0,17219.0,5.26007307]
[1673313504982,0.00621258,17220.0,17219.0,5.24007307]
[1673313505246,0.00621258,17220.0,17219.0,5.31407307]
[1673313505508,0.01621258,17220.0,17219.0,5.31407307]
[1673313505754,0.00571258,17220.0,17219.0,5.24007307]
[1673313506034,0.00871258,17220.0,17219.0,5.26007307]
[1673313506256,0.00571258,17220.0,17219.0,5.82082607]
[1673313506490,0.01571258,17220.0,17219.0,5.89482607]
[1673313507251,0.01521258,17220.0,17219.0,5.89482607]
[1673313507541,0.01471258,17220.0,17219.0,5.72602607]
[1673313508805,0.01421258,17220.0,17219.0,5.72602607]
[1673313511122,0.01421258,17220.0,17219.0,5.72589998]
[1673313513055,0.00580647,17221.0,17220.0,0.30139523]
[1673313513280,0.00580647,17221.0,17220.0,3.85346206]
[1673313514004,0.00580647,17221.0,17220.0,4.05346206]
[1673313514525,0.01480647,17221.0,17220.0,4.13746206]
[1673313516480,0.01480647,17221.0,17220.0,4.42782206]
[1673313516710,0.01480647,17221.0,17220.0,4.4634279]
[1673313517576,0.01480647,17221.0,17220.0,4.07800374]
[1673313517794,0.01480647,17221.0,17220.0,3.78764374]
[1673313518676,0.01480647,17221.0,17220.0,3.84555077]
[1673313519791,0.01480647,17221.0,17220.0,3.78764374]
[1673313523136,0.01480647,17221.0,17220.0,4.3455705]
[1673313523354,0.01480647,17221.0,17220.0,3.78764374]
[1673313524661,0.01480647,17221.0,17220.0,4.4833911]
[1673313524919,0.01480647,17221.0,17220.0,3.1338711]
[1673313525172,0.01480647,17221.0,17220.0,2.5531511]
[1673313526194,0.01480647,17221.0,17220.0,2.1914161]
[1673313526700,0.01480647,17221.0,17220.0,2.55335988]
[1673313526950,0.01480647,17221.0,17220.0,1.97263988]
[1673313527961,0.01480647,17221.0,17220.0,2.55335988]
[1673313530209,0.01480647,17221.0,17220.0,2.19162488]
[1673313530970,0.01480647,17221.0,17220.0,2.77234488]
[1673313531225,0.01480647,17221.0,17220.0,1.95920343]
[1673313531488,0.01480647,17221.0,17220.0,1.59746843]
[1673313533044,0.01480647,17221.0,17220.0,1.01674843]
[1673313533572,0.01480647,17221.0,17220.0,1.01695721]
[1673313534603,0.01480647,17221.0,17220.0,1.59767721]
[1673313535374,0.01480647,17221.0,17220.0,2.17700198]
[1673313538218,0.01480647,17221.0,17220.0,2.53873698]
[1673313539509,0.01480647,17221.0,17220.0,2.17700198]
[1673313540539,0.01480647,17221.0,17220.0,2.75772198]
[1673313540803,0.01480647,17221.0,17220.0,3.11945698]
[1673313541295,0.01480647,17221.0,17220.0,2.75772198]
[1673313542071,0.01480647,17221.0,17220.0,3.14445698]
[1673313542842,0.01480647,17221.0,17220.0,2.78272198]
[1673313544907,0.01480647,17221.0,17220.0,3.14445698]
[1673313545415,0.01480647,17221.0,17220.0,2.78272198]
[1673313545668,0.01480647,17221.0,17220.0,2.7825132]
[1673313545939,0.01480647,17221.0,17220.0,2.7575132]
[1673313546198,0.01480647,17221.0,17220.0,2.1767932]
[1673313549610,0.01480647,17221.0,17220.0,2.17700198]
[1673313552335,1.15855441,17222.0,17221.0,0.01019353]
[1673313553593,1.16755441,17222.0,17221.0,0.10019353]
[1673313555831,1.16755441,17222.0,17221.0,0.13598725]
[1673313556079,1.34176134,17222.0,17221.0,0.13598725]
[1673313556839,0.62635367,17222.0,17221.0,0.13598725]
[1673313557116,0.45194702,17222.0,17221.0,1.26266805]
[1673313557607,0.45194702,17222.0,17221.0,1.25247452]
[1673313558617,0.80038109,17222.0,17221.0,1.25247452]
[1673313558870,0.62635367,17222.0,17221.0,0.70647972]
[1673313559380,0.62635367,17222.0,17221.0,0.70668848]
[1673313559877,0.62635367,17222.0,17221.0,0.12579372]
[1673313562242,0.80029292,17222.0,17221.0,0.12579372]
[1673313563254,1.06144045,17222.0,17221.0,0.12579372]
[1673313563537,0.6262062,17222.0,17221.0,0.12579372]
[1673313564044,1.19468663,17222.0,17221.0,0.12579372]
[1673313564863,0.80029292,17222.0,17221.0,0.12579372]
[1673313565879,0.62627148,17222.0,17221.0,0.12579372]
[1673313566382,0.80029292,17222.0,17221.0,0.12579372]
[1673313566865,1.06151145,17222.0,17221.0,0.12579372]
[1673313567616,0.6262772,17222.0,17221.0,0.12579372]
[1673313568103,1.37158166,17222.0,17221.0,0.12579372]
[1673313568373,1.62170771,17222.0,17221.0,0.12579372]
[1673313568658,1.19198203,17222.0,17221.0,0.12579372]
[1673313570003,0.79774141,17222.0,17221.0,0.12579372]
[1673313574469,1.37839341,17222.0,17221.0,0.12579372]
[1673313575015,1.80811909,17222.0,17221.0,0.12579372]
[1673313575250,1.80811909,17222.0,17221.0,0.12572202]
[1673313576162,2.38877109,17222.0,17221.0,0.12572202]
[1673313577387,3.13762309,17222.0,17221.0,0.12572202]
[1673313579070,2.78494072,17222.0,17221.0,0.04379372]
[1673313579313,2.68494072,17222.0,17221.0,0.03579372]
[1673313579802,2.78494072,17222.0,17221.0,0.008]
[1673313580046,0.02313097,17220.0,17218.0,0.03573542]
[1673313580312,1.53093349,17219.0,17218.0,0.03573542]
[1673313580587,1.96065917,17219.0,17218.0,0.03573542]
[1673313580848,1.37990617,17219.0,17218.0,0.03573542]
[1673313581109,1.67990617,17219.0,17218.0,0.03573542]
[1673313581363,3.05138357,17219.0,17218.0,0.03573542]
[1673313582121,3.15838357,17219.0,17218.0,0.04273542]
[1673313582665,4.0869439,17219.0,17218.0,0.04273542]
[1673313583369,4.80324244,17219.0,17218.0,0.04273542]
[1673313583893,4.45543511,17219.0,17218.0,0.04273542]
[1673313584144,4.80310885,17219.0,17218.0,0.04273542]
[1673313584620,4.45543511,17219.0,17218.0,0.04273542]
[1673313585617,4.02044595,17219.0,17218.0,0.04273542]
[1673313586111,4.4548455,17219.0,17218.0,0.04273542]
[1673313587807,4.02044595,17219.0,17218.0,0.04273542]
[1673313589080,4.45464645,17219.0,17218.0,0.04273542]
[1673313589822,3.30414741,17219.0,17218.0,0.04273542]
[1673313590312,3.90202103,17219.0,17218.0,0.04273542]
[1673313591047,4.33606094,17219.0,17218.0,0.04273542]
[1673313591543,3.90202103,17219.0,17218.0,0.04273542]
[1673313591798,4.33605912,17219.0,17218.0,0.04273542]
[1673313592041,4.68328126,17219.0,17218.0,0.04273542]
[1673313596880,4.29291853,17219.0,17218.0,0.04273542]
[1673313597844,4.72201712,17219.0,17218.0,0.04273542]
[1673313598096,4.28797903,17219.0,17218.0,0.04273542]
[1673313598344,3.94709245,17219.0,17218.0,0.04273542]
[1673313599819,3.36633945,17219.0,17218.0,0.04273542]
[1673313600350,3.36633945,17219.0,17218.0,0.04265164]
[1673313600861,3.54002603,17219.0,17218.0,0.04265164]
[1673313601857,3.54002603,17219.0,17218.0,0.03930064]
[1673313604315,3.97414658,17219.0,17218.0,0.03930064]
[1673313604802,3.71376553,17219.0,17218.0,0.03930064]
[1673313605544,3.5401176,17219.0,17218.0,0.03930064]
[1673313606288,3.71376553,17219.0,17218.0,0.03930064]
[1673313606542,3.97420759,17219.0,17218.0,0.03930064]
[1673313606801,3.36586553,17219.0,17218.0,0.03930064]
[1673313607292,3.6263248,17219.0,17218.0,0.03930064]
[1673313607546,3.75595821,17219.0,17218.0,0.03930064]
[1673313608125,3.40873607,17219.0,17218.0,0.03930064]
[1673313608722,3.40873607,17219.0,17218.0,0.0051357]
[1673313608967,3.55545098,17219.0,17218.0,0.0051357]
[1673313610292,4.07743797,17219.0,17218.0,0.0051357]
[1673313615440,4.0771168,17219.0,17218.0,0.0051357]
[1673313615701,4.11174995,17219.0,17218.0,0.0051357]
[1673313615959,4.07711586,17219.0,17218.0,0.0051357]
[1673313616204,4.11174995,17219.0,17218.0,0.0051357]
[1673313616460,3.55545098,17219.0,17218.0,0.0051357]
[1673313617903,3.72345098,17219.0,17218.0,0.0051357]
[1673313618354,4.3109961,17219.0,17218.0,0.0051357]
[1673313620390,4.01312248,17219.0,17218.0,0.0051357]
[1673313620817,4.15067633,17219.0,17218.0,0.00047079]
[1673313621041,3.59437736,17219.0,17218.0,0.00047079]
[1673313625195,3.59322736,17219.0,17218.0,0.00047079]
[1673313628203,4.02964789,17219.0,17218.0,0.00047079]
[1673313628444,4.19684789,17219.0,17218.0,0.00047079]
[1673313628701,4.58594686,17219.0,17218.0,6.547e-05]
[1673313628942,4.58594686,17219.0,17218.0,0.02623801]
[1673313628943,4.14952633,17219.0,17218.0,0.02623801]
[1673313629440,3.59322736,17219.0,17218.0,0.02623801]
[1673313630703,3.59322736,17219.0,17218.0,0.00243456]
[1673313631213,4.18032213,17219.0,17218.0,0.00243456]
[1673313631454,3.59322736,17219.0,17218.0,0.00243456]
[1673313631705,3.94026431,17219.0,17218.0,0.00243456]
[1673313632737,3.59322736,17219.0,17218.0,0.00243456]
[1673313632999,4.14952633,17219.0,17218.0,0.00243456]
[1673313633525,4.73660202,17219.0,17218.0,0.00243456]
[1673313633751,4.14952633,17219.0,17218.0,0.00243456]
[1673313634006,3.59322736,17219.0,17218.0,0.00243456]
[1673313634277,4.0047695,17219.0,17218.0,0.00243456]
[1673313634798,4.56106847,17219.0,17218.0,0.00243456]
[1673313637833,4.56106847,17219.0,17218.0,0.00017502]
[1673313639725,4.12452633,17219.0,17218.0,0.00017502]
[1673313639992,3.56822736,17219.0,17218.0,0.00017502]
[1673313640791,3.56822736,17219.0,17218.0,1.685e-05]
[1673313641345,4.12452633,17219.0,17218.0,1.685e-05]
[1673313642322,4.12446633,17219.0,17218.0,1.685e-05]
[1673313642578,4.70385739,17219.0,17218.0,1.685e-05]
[1673313645804,4.315e-05,17217.0,17215.0,0.00860011]
[1673313646069,2.26451747,17216.0,17215.0,0.00860011]
[1673313646336,3.08251475,17216.0,17215.0,0.00860011]
[1673313646593,2.56056228,17216.0,17215.0,0.00860011]
[1673313647115,2.56056228,17216.0,17215.0,0.04460011]
[1673313647367,2.56056228,17216.0,17215.0,0.00860011]
[1673313647615,2.56056228,17216.0,17215.0,0.04060011]
[1673313647616,2.57456228,17216.0,17215.0,0.04060011]
[1673313647870,2.74306228,17216.0,17215.0,0.04060011]
[1673313648119,3.42630121,17216.0,17215.0,0.00860011]
[1673313648361,3.41230121,17216.0,17215.0,0.00860011]
[1673313648890,3.41230121,17216.0,17215.0,0.00121634]
[1673313650349,3.41230121,17216.0,17215.0,0.00421634]
[1673313650620,3.54830121,17216.0,17215.0,0.00421634]
[1673313651186,3.41230121,17216.0,17215.0,0.00121634]
[1673313651435,3.41230121,17216.0,17215.0,0.00421634]
[1673313651679,3.54930121,17216.0,17215.0,0.00421634]
[1673313651930,3.12139661,17216.0,17215.0,0.00421634]
[1673313652200,4.07146081,17216.0,17215.0,0.00421634]
[1673313652512,3.54930121,17216.0,17215.0,0.00421634]
[1673313654318,3.38080121,17216.0,17215.0,0.00421634]
[1673313656838,3.96799774,17216.0,17215.0,0.00421634]
[1673313657342,3.38080121,17216.0,17215.0,0.00421634]
[1673313659396,3.96799774,17216.0,17215.0,0.00421634]
[1673313660650,3.38080121,17216.0,17215.0,0.00421634]
[1673313663180,1.73289281,17216.0,17215.0,0.00421634]
[1673313663692,1.21033161,17216.0,17215.0,0.00421634]
[1673313664250,1.51033161,17216.0,17215.0,0.00421634]
[1673313665000,1.51033161,17216.0,17215.0,0.17281634]
[1673313666982,1.51033161,17216.0,17215.0,0.16981634]
[1673313667226,1.37333161,17216.0,17215.0,0.16981634]
[1673313667722,1.50933161,17216.0,17215.0,0.17381634]
[1673313667987,1.50933161,17216.0,17215.0,0.16981634]
[1673313668199,1.50933161,17216.0,17215.0,0.17381634]
[1673313668200,1.64533161,17216.0,17215.0,0.17381634]
[1673313668707,2.08059513,17216.0,17215.0,0.17381634]
[1673313668955,1.0973562,17216.0,17215.0,0.17381634]
[1673313669238,1.05545921,17216.0,17215.0,1.40709361]
[1673313669487,0.88133496,17216.0,17215.0,1.81872127]
[1673313669740,1.31659848,17216.0,17215.0,1.40709361]
[1673313669983,0.88133496,17216.0,17215.0,1.40709361]
[1673313670473,0.60933496,17216.0,17215.0,1.40909361]
[1673313670726,0.73433496,17216.0,17215.0,1.40309361]
[1673313671220,0.85933496,17216.0,17215.0,1.40909361]
[1673313671462,1.03345921,17216.0,17215.0,1.40909361]
[1673313671721,1.29451877,17216.0,17215.0,1.40909361]
[1673313671967,0.85925525,17216.0,17215.0,1.98998161]
[1673313672452,1.03325211,17216.0,17215.0,1.98998161]
[1673313672697,0.85925525,17216.0,17215.0,1.98998161]
[1673313673184,0.85925525,17216.0,17215.0,1.40909361]
[1673313675247,0.85925525,17216.0,17215.0,1.98998161]
[1673313675528,0.85925525,17216.0,17215.0,2.57086961]
[1673313676737,1.03319441,17216.0,17215.0,2.57086961]
[1673313676981,0.68499675,17216.0,17215.0,2.57086961]
[1673313678273,0.68499675,17216.0,17215.0,1.97086961]
[1673313678274,0.85925525,17216.0,17215.0,1.97086961]
[1673313678527,1.03318464,17216.0,17215.0,1.97086961]
[1673313678777,0.85925525,17216.0,17215.0,1.97086961]
[1673313679296,0.85925525,17216.0,17215.0,1.38998161]
[1673313679534,0.68498153,17216.0,17215.0,1.38998161]
[1673313681830,0.42392197,17216.0,17215.0,1.38998161]
[1673313682362,0.68498153,17216.0,17215.0,0.80909361]
[1673313683336,0.42392197,17216.0,17215.0,0.80909361]
[1673313683592,0.68498153,17216.0,17215.0,0.80909361]
[1673313684400,0.68498153,17216.0,17215.0,1.38998161]
[1673313684659,0.42392197,17216.0,17215.0,1.97086961]
[1673313684913,0.68498153,17216.0,17215.0,1.97086961]
[1673313686169,0.42392197,17216.0,17215.0,1.97086961]
[1673313687189,0.68498153,17216.0,17215.0,1.97086961]
[1673313690332,0.42392197,17216.0,17215.0,1.97086961]
[1673313692903,0.68498153,17216.0,17215.0,1.97086961]
[1673313693156,0.42392197,17216.0,17215.0,1.97086961]
[1673313694450,0.42392197,17216.0,17215.0,1.80226961]
[1673313694931,0.68498153,17216.0,17215.0,1.80226961]
[1673313695175,0.25,17216.0,17215.0,2.81408602]
[1673313695431,0.25,17216.0,17215.0,2.40226961]
[1673313696718,0.42392197,17216.0,17215.0,2.40226961]
[1673313697970,0.42392197,17216.0,17215.0,2.56946961]
[1673313698234,0.42392197,17216.0,17215.0,2.93120461]
[1673313700024,0.42392197,17216.0,17215.0,3.5316711]
[1673313700536,0.25,17216.0,17215.0,3.5316711]
[1673313700783,0.42392197,17216.0,17215.0,3.5316711]
[1673313701803,0.25,17216.0,17215.0,3.5316711]
[1673313702105,0.25,17216.0,17215.0,3.94727337]
[1673313704092,0.25,17216.0,17215.0,3.94739711]
[1673313705342,0.25,17216.0,17215.0,3.5316711]
[1673313705591,0.25,17216.0,17215.0,3.94745869]
[1673313705837,0.25,17216.0,17215.0,3.94741602]
[1673313706084,0.25,17216.0,17215.0,3.5316711]
[1673313711631,0.25,17216.0,17215.0,3.94735521]
[1673313711882,0.25,17216.0,17215.0,3.94744068]
[1673313712417,0.25,17216.0,17215.0,3.94743954]
[1673313713887,0.25,17216.0,17215.0,4.24743954]
[1673313714141,0.25,17216.0,17215.0,3.94743954]
[1673313715921,0.25,17216.0,17215.0,3.5316711]
[1673313717952,0.25,17216.0,17215.0,3.94751321]
[1673313718230,0.24988588,17216.0,17215.0,4.44078007]
[1673313718503,0.24988588,17216.0,17215.0,5.0148852]
[1673313719783,4.315e-05,17217.0,17215.0,5.0148852]
[1673313719784,4.315e-05,17217.0,17215.0,5.0088852]
[1673313720062,0.011,17216.0,17215.0,3.33938999]
[1673313720307,0.011,17216.0,17215.0,6.50984113]
[1673313720553,0.011,17216.0,17215.0,6.24920844]
[1673313720799,4.315e-05,17217.0,17215.0,6.00966761]
[1673313721063,0.01104315,17217.0,17216.0,2.05754156]
[1673313721324,4.315e-05,17217.0,17216.0,3.80010656]
[1673313721875,4.315e-05,17217.0,17216.0,4.0606536]
[1673313722126,0.01104315,17217.0,17216.0,4.51347696]
[1673313722626,4.315e-05,17217.0,17216.0,4.0606536]
[1673313722630,0.01004315,17217.0,17216.0,4.58148368]
[1673313722876,0.01004315,17217.0,17216.0,4.1286536]
[1673313723134,0.01004315,17217.0,17216.0,3.86810656]
[1673313723392,0.01004315,17217.0,17216.0,4.42609521]
[1673313723642,0.01004315,17217.0,17216.0,3.78359431]
[1673313724410,0.01004315,17217.0,17216.0,4.08359431]